Cogmind - Beta 15 @@@ ROGUE MODE // 2025.07.06 @ 13:35:45 Player: winnking222 Result: Destroyed by 8R-AWN with 8R-AWN's Boregun Performance ------------- Evolutions (1) 500 Regions Visited (4) 800 Robots Destroyed (65) 325 Value Destroyed (1485) 1485 Prototype IDs (29) 580 Alien Tech Used (0) 0 Bonus (328) 328 TOTAL SCORE: 4018 Bonus ------- High Alert Combat Kills 28 Aligned with FarCom 300 Cogmind --------- Core Integrity 0/400 Matter 117/300 Energy 43/100 System Corruption 9% Temperature Warm (101) Movement Treading (320) Ox2 Location -9/Exiles Parts ------- > --- POWER (1) -------- (None) > --- PROPULSION (3) --- Light Treads > --- UTILITY (2) ------ High-capacity Storage Unit > --- WEAPON (3) ------- Guided Plasma Cannon Ripper > --- INVENTORY (20) --- Deuterium Engine Deuterium Engine Improved Heat Sink Large Matter Pod (150) Seismic Detector Salvage Targeting Computer Recalibrator Recalibrator EMP Blaster Peak State ------------ > --- POWER ------------ Deuterium Engine > --- PROPULSION ------- Light Treads Light Treads Light Treads > --- UTILITY ---------- High-capacity Storage Unit Light Armor Plating > --- WEAPON ----------- Heavy Assault Rifle Autogun Improved Assault Rifle > --- INVENTORY -------- Deuterium Engine Deuterium Engine Light Treads Light Treads Wheel Improved Heat Sink Medium Matter Pod Seismic Detector Seismic Detector Salvage Targeting Computer Salvage Targeting Computer Targeting Computer Trap Extractor Recalibrator Recalibrator Small Laser Assault Rifle Assault Rifle EMP Blaster Grenade Launcher [Rating: 18] Favorites ----------- Power Deuterium Engine Engine Deuterium Engine Power Core Light Nuclear Core Propulsion Light Treads Treads Light Treads Wheel Wheel Utility High-capacity Storage Unit Device Seismic Detector Storage High-capacity Storage Unit Protection Light Armor Plating Weapon Heavy Assault Rifle Energy Cannon Guided Plasma Cannon Ballistic Gun Heavy Assault Rifle Launcher Grenade Launcher Slashing Weapon Ripper Build | -11 -10 -9 -9 -9 ------- Run | Yrd Mat Mat Min Exi Slots Evolved 2 | . . 2 . . Power . | . . . . . Propulsion 1 | . . 1 . . Utility . | . . . . . Weapon 1 | . . 1 . . Parts Attached 45 | 7 13 19 1 5 Power 4 | 1 2 1 . . Engine 3 | 1 1 1 . . Core 1 | . 1 . . . Reactor . | . . . . . Propulsion 14 | 2 2 8 . 2 Treads 13 | 2 1 8 . 2 Leg . | . . . . . Wheel 1 | . 1 . . . Hover . | . . . . . Flight . | . . . . . Utility 9 | 2 5 1 1 . Device 2 | 1 1 . . . Storage 4 | 1 3 . . . Processor . | . . . . . Hackware . | . . . . . Protection 3 | . 1 1 1 . Artifact . | . . . . . Weapon 18 | 2 4 9 . 3 Energy Gun . | . . . . . Energy Cannon 1 | . . . . 1 Ballistic Gun 14 | 2 4 8 . . Ballistic Cannon . | . . . . . Launcher 2 | . . 1 . 1 Special Weapon . | . . . . . Impact Weapon . | . . . . . Slashing Weapon 1 | . . . . 1 Piercing Weapon . | . . . . . Special Melee Weapon . | . . . . . Unidentified Prototypes 1 | . . 1 . . Parts Lost 17 | . 6 . 1 10 Power 2 | . 1 . . 1 Propulsion 7 | . 2 . . 5 Utility 3 | . 1 . 1 1 Weapon 5 | . 2 . . 3 Highest Loss Streak 9 | . 3 . 1 9 To Critical Strikes 3 | . . . . 3 Average Backups 15 | 3 11 18 17 15 Power 1 | . 1 1 2 2 Propulsion 2 | 1 . 2 3 2 Utility 7 | . 6 9 7 6 Weapon 4 | 1 2 4 5 4 Tool/Special . | . . . . . Unused Backups 18 | . 1 7 1 9 Power 6 | . 1 3 . 2 Propulsion . | . . . . . Utility 11 | . . 4 1 6 Weapon 1 | . . . . 1 Tool/Special . | . . . . . Average Slot Usage (%) 94 | . 97 97 99 66 Engine 9 | . 12 5 11 8 Core 1 | . . 5 . . Treads 29 | . 25 29 33 30 Wheel 1 | . 2 1 . . Device 4 | . 12 . . 7 Storage 11 | . 14 11 11 11 Protection 6 | . . 11 10 . Ballistic Gun 27 | . 27 32 33 4 Peak Build Rating 18 | 7 12 18 18 18 Average Rating 13 | 5 8 15 17 12 On Entrance 10 | . 7 11 17 18 Naked Turns . | . . . . . Heaviest Build 61 | 13 52 61 61 60 Greatest Support 60 | 40 40 60 60 60 Greatest Overweight (x) 5 | . 5 5 1 5 Average Overweight (x) . | . . 1 . . Largest Inventory Capacity 20 | 8 20 20 20 20 Average Capacity 18 | 7 15 20 20 20 Most Carried 20 | 5 17 20 20 20 Average Carried 15 | 3 11 18 17 17 Final Capacity 20 | 8 20 20 20 20 Final Carried 20 | 5 13 18 20 9 Class Distribution -------------------- 52% | Scavenger-Tank 36% | Mutant 6% | Tank 3% | Scavenger-Gunner Dominant Class ---------------- Mutant | -10/Materials Scavenger-Tank | -9/Materials Scavenger-Tank | -9/Mines Mutant | -9/Exiles Resources | -11 -10 -9 -9 -9 ----------- Run | Yrd Mat Mat Min Exi Matter Collected 1945 | 333 385 977 250 . Remotely . | . . . . . Salvage Created 2296 | 118 478 1498 164 38 Parts 160 | 15 25 111 9 . Haulers Intercepted 2 | . 1 1 . . Recyclers Shooed 2 | . . 2 . . Parts Field Recycled . | . . . . . Retrieved Matter . | . . . . . Parts Self-Destructed . | . . . . . Prevented . | . . . . . Kills | -11 -10 -9 -9 -9 ------- Run | Yrd Mat Mat Min Exi Combat Hostiles Destroyed 50 | . 9 31 6 4 Guns 42 | . 9 27 6 . Cannons 2 | . . . . 2 AOE 6 | . . 4 . 2 Classes Destroyed 11 | 2 5 3 . 1 Worker 1 | . . 1 . . Builder 1 | . . 1 . . Tunneler 3 | 3 . . . . Hauler 2 | . 1 1 . . Recycler 5 | 1 . 4 . . Mechanic 2 | . 1 1 . . Watcher 5 | . 3 2 . . Swarmer 19 | . 2 13 4 . Grunt 19 | . 7 10 2 . Sentry 8 | . . 8 . . Assembled 4 | . . . . 4 Best Kill Streak 9 | 3 3 9 4 2 Combat Bots Only 7 | . 2 7 4 2 Max Kills in Single Turn 3 | 1 2 3 1 2 Gunslinging 1 | . . 1 . . Exploded 2 | . . 2 . 2 Melee . | . . . . . Uniques/NPCs Destroyed . | . . . . . Combat | -11 -10 -9 -9 -9 -------- Run | Yrd Mat Mat Min Exi Hostile Shots Fired 346 | . 88 111 49 98 Missed 98 | . 21 39 13 25 Hits 248 | . 67 72 36 73 Melee 3 | . . . . 3 Projectile 245 | . 67 72 36 70 Critical Strikes 27 | . . 3 1 23 Part Disruptions 1 | . 1 . . . Damage Taken 3352 | . 1069 777 303 1203 Core 643 | . 238 87 17 301 Absorbed by Shields . | . . . . . Core Remaining (%) 52 | 100 4 . . . Volleys Fired 167 | 11 55 64 13 24 Largest 3 | 2 2 3 3 2 Hottest 120 | 40 40 76 69 120 Shots Fired 392 | 22 110 187 43 30 Gun 372 | 22 110 182 43 15 Cannon 10 | . . . . 10 Launcher 10 | . . 5 . 5 Special . | . . . . . Kinetic 372 | 22 110 182 43 15 Thermal 10 | . . . . 10 Explosive 5 | . . . . 5 Electromagnetic 5 | . . 5 . . Robot Hit Streak 15 | 5 9 15 5 9 Robot Miss Streak 5 | 4 2 5 3 2 Penetration Max . | . . . . . Secondary Targets 13 | . 2 8 3 . Max Gunslinging Chain 1 | . 1 1 1 . Shots Hit Robots 222 | 13 71 100 25 13 Core Hits 106 | 5 25 62 7 7 Critical Kills 1 | . . 1 . . Critical Parts Destroyed 1 | . . . 1 . Critical Strikes 2 | . . 1 1 . Destroy 2 | . . 1 1 . Melee Attacks . | . . . . . Impact . | . . . . . Slashing . | . . . . . Piercing . | . . . . . Sneak Attacks . | . . . . . Combat Hostiles . | . . . . . Follow-up Attacks . | . . . . . Damage Inflicted 3915 | 154 941 1898 386 536 Guns 3041 | 154 931 1496 386 74 Cannons 204 | . . . . 204 Explosions 639 | . . 381 . 258 Melee . | . . . . . Ramming 31 | . 10 21 . . Kinetic 3041 | 154 931 1496 386 74 Thermal 218 | . . 14 . 204 Explosive 258 | . . . . 258 Electromagnetic 367 | . . 367 . . Impact . | . . . . . Slashing . | . . . . . Piercing . | . . . . . Highest Corruption 9 | . 3 4 4 9 Average Corruption 3 | . 1 3 4 4 Corruption Purged . | . . . . . Corruption Blocked . | . . . . . Effects 90 | . 12 33 35 10 Message Errors 23 | . 4 5 8 6 Matter Fused 18 | . 1 9 8 . Heat Flow Errors 10 | . . 4 4 2 Energy Discharges 15 | . 2 5 7 1 Parts Fused 1 | . . 1 . . Data Loss (minor) 6 | . 2 2 2 . Data Loss (major) 8 | . 3 4 1 . Misfires 5 | . . . 4 1 Alerts 1 | . . . 1 . Weapon Failures 3 | . . 3 . . Overload Shots . | . . . . . Overflow Damage 14 | . . . . 14 Projectiles 9 | . . . . 9 Explosions 5 | . . . . 5 Melee . | . . . . . Knockbacks 2 | . 1 1 . . Impact 2 | . 1 1 . . Kinetic . | . . . . . Secondary . | . . . . . Self-Inflicted Damage 19 | . . 19 . . Shots 1 | . . 1 . . Rammed 4 | . 2 2 . . Targets Rammed 4 | . 2 2 . . Kicked . | . . . . . Crushed . | . . . . . Highest Temperature 473 | . 15 451 277 473 Average Temperature 82 | . 4 79 64 160 Received Heat Transfer 645 | . 408 222 15 . Effects 6 | . . 4 . 2 Shutdowns 2 | . . 2 . . Interference 3 | . . 2 . 1 Matter Decay 1 | . . . . 1 Siege Activations . | . . . . . Martial Activations . | . . . . . Shielding Activations . | . . . . . Robots Disrupted . | . . . . . Combat Hostiles . | . . . . . Robots Corrupted 1 | . . 1 . . Combat Hostiles . | . . . . . Parts Fried 3 | . . 3 . . Impact Corruptions . | . . . . . Robots Melted . | . . . . . Combat Hostiles . | . . . . . Parts Melted . | . . . . . Heat Transferred 600 | . . 100 . 500 Parts Sabotaged . | . . . . . Parts Stolen . | . . . . . Parts Stripped . | . . . . . Power Chain Reactions 2 | . . 2 . . Alert | -11 -10 -9 -9 -9 ------- Run | Yrd Mat Mat Min Exi Maximum Alert Level 2 | . . 2 1 . Low Security (%) 68 | 100 100 23 88 . Level 1 20 | . . 45 11 . Level 2 11 | . . 31 . . Level 3 . | . . . . . Level 4 . | . . . . . Level 5 . | . . . . . High Security . | . . . . . Max Security . | . . . . . Peak Influence 485 | 10 51 485 283 . Initial 153 | . . . 153 . Average 133 | 1 12 301 59 . Influence Increases 1368 | 20 269 879 200 . Destroy 0b10 Robot/C 920 | . 180 620 120 . Destroy 0b10 Robot/NC 95 | 20 25 50 . . Destroy Leader 224 | . 48 156 20 . Successful Hack 5 | . . 5 . . Disable Machine 105 | . 15 30 60 . Destroy Structure 4 | . 1 3 . . Lose Combat Pursuer 15 | . . 15 . . Influence Decreases 1368 | 20 269 484 595 . Entered New Map 242 | . . . 242 . Time Decay 1088 | 20 241 484 343 . Lost Part 38 | . 28 . 10 . Squads Dispatched 4 | . 1 3 . . Investigation 3 | . . 3 . . Extermination . | . . . . . Reinforcement 1 | . 1 . . . Assault . | . . . . . Garrison . | . . . . . Intercept . | . . . . . Searches Triggered . | . . . . . Construction Impeded . | . . . . . Haulers Reinforced . | . . . . . Active Scanning Responses . | . . . . . Cargo Convoy Interrupts . | . . . . . Stealth | -11 -10 -9 -9 -9 --------- Run | Yrd Mat Mat Min Exi Distress Signals 2 | . . 2 . . Communications Jammed . | . . . . . Distress Signals . | . . . . . Times Spotted 74 | . 14 46 6 8 Peak Tracking Total 9 | . 3 7 4 9 Tactical Retreats 1 | . . 1 . . Traps | -11 -10 -9 -9 -9 ------- Run | Yrd Mat Mat Min Exi Traps Triggered 7 | . 3 4 . . Indirectly 1 | . . 1 . . Trap Hack Attempts . | . . . . . Triggered . | . . . . . Disarmed . | . . . . . Reprogrammed . | . . . . . Reused 4 | . . . . 4 Traps Extracted . | . . . . . Installed 5 | . . . . 5 Triggered . | . . . . . Most Traps Carried 5 | . . . 5 5 Machines | -11 -10 -9 -9 -9 ---------- Run | Yrd Mat Mat Min Exi Machines Disabled 9 | . 1 2 4 2 Max in Single Turn 1 | . 1 1 1 1 Machines Repaired . | . . . . . Machines Dismantled . | . . . . . Machines Sabotaged . | . . . . . Overloaded Fab Kills . | . . . . . Hacking | -11 -10 -9 -9 -9 --------- Run | Yrd Mat Mat Min Exi Machines Accessed 10 | . 5 3 . 2 Terminals 8 | . 5 3 . . Fabricators . | . . . . . Repair Stations . | . . . . . Recycling Units . | . . . . . Scanalyzers . | . . . . . Garrison Access . | . . . . . Total Hacks 42 | . 10 8 . 24 Successful 32 | . 6 2 . 24 Failed 10 | . 4 6 . . Catastrophic 2 | . 1 1 . . Database Lockouts . | . . . . . Manual 6 | . 2 3 . 1 Terminals 18 | . 10 8 . . Fabricators . | . . . . . Repair Stations . | . . . . . Recycling Units . | . . . . . Scanalyzers . | . . . . . Garrison Access . | . . . . . Terminal Hacks 32 | . 6 2 . 24 Record 24 | . . 1 . 23 Prototype ID Bank 3 | . 3 . . . Locate Traps 1 | . 1 . . . Hauler Manifests 2 | . 1 1 . . Registered Components 1 | . 1 . . . Proto ID Catalog 1 | . . . . 1 Fabricator Hacks . | . . . . . Repair Station Hacks . | . . . . . Recycling Unit Hacks . | . . . . . Scanalyzer . | . . . . . Garrison Access Hacks . | . . . . . Unauthorized Hacks . | . . . . . Terminals . | . . . . . Fabricators . | . . . . . Repair Stations . | . . . . . Recycling Units . | . . . . . Scanalyzers . | . . . . . Garrison Access . | . . . . . Data Cores Recovered . | . . . . . Used . | . . . . . Hacking Detections 5 | . 3 2 . . Full Trace Events 4 | . 2 2 . . Feedback Events 1 | . 1 . . . Corruption 1 | . 1 . . . Feedback Blocked . | . . . . . Robot Schematics Acquired . | . . . . . Robots Built . | . . . . . Authchips . | . . . . . Time . | . . . . . Total Robot Build Rating . | . . . . . Part Schematics Acquired . | . . . . . Parts Built . | . . . . . Authchips . | . . . . . Time . | . . . . . Total Part Build Rating . | . . . . . Parts Repaired . | . . . . . Time . | . . . . . Parts Recycled . | . . . . . Recycled Matter . | . . . . . Retrieved Matter . | . . . . . Retrieved Components . | . . . . . Parts Scanalyzed . | . . . . . Part Schematics Acquired . | . . . . . Parts Damaged . | . . . . . Bothacking | -11 -10 -9 -9 -9 ------------ Run | Yrd Mat Mat Min Exi Used RIF Installer . | . . . . . Robots Hacked . | . . . . . Non-combat . | . . . . . Combat . | . . . . . Robot Hacks Applied . | . . . . . Relay Couplers Released . | . . . . . Fabnet Peak Effective % . | . . . . . Robots Rewired . | . . . . . Allies Hacked . | . . . . . Hacks Repelled . | . . . . . Allies | -11 -10 -9 -9 -9 -------- Run | Yrd Mat Mat Min Exi Total Allies 3 | . . . 3 . Largest Group 3 | . . . 3 3 Highest-Rated Group 40 | . . . 40 40 Highest-Rated Ally 16 | . . . 16 16 Total Orders 3 | . . . . 3 STAY 3 | . . . . 3 Ally Attacks 18 | . . . . 18 Total Damage 131 | . . . . 131 Kills 2 | . . . . 2 Allies Corrupted . | . . . . . Allies Melted . | . . . . . Intel | -11 -10 -9 -9 -9 ------- Run | Yrd Mat Mat Min Exi Active Infowar (turns) 1070 | 71 999 . . . Seismic 1070 | 71 999 . . . Robot Analysis Total . | . . . . . Derelict Logs Recovered 1 | . . . 1 . Drone Launches . | . . . . . Drone Recoveries . | . . . . . Exploration | -11 -10 -9 -9 -9 ------------- Run | Yrd Mat Mat Min Exi Turns Passed 5126 | 159 1190 1643 1525 609 Spaces Moved 2281 | 75 563 689 638 316 Core 10 | 10 . . . . Treads 2053 | 65 474 563 638 313 Legs . | . . . . . Wheels 218 | . 89 126 . 3 Hover . | . . . . . Flight . | . . . . . Fastest Speed 50 | 50 140 155 160 155 Average Speed 194 | 145 174 196 231 166 Slowest Speed 320 | 160 320 240 240 320 Overloaded Moves . | . . . . . Propulsion Burnouts . | . . . . . Robots Hopped . | . . . . . Potential Cave-ins . | . . . . . Cave-ins Triggered . | . . . . . Exploration Rate (%) 65 | 5 95 69 98 59 Regions Visited 4 Branch Regions 2 Pre-discovered Areas 1 | . . . . 1 Known Exits Taken . | . . . . . Unknown Exits Taken 4 | 1 1 1 1 . Scrap Searched 1 | . . . 1 . Spaces Dug 4 | . . . . 4 Terrain Destroyed 18 | . . 2 . 16 Melee . | . . . . . Projectile . | . . . . . AOE 18 | . . 2 . 16 Terrain Rammed . | . . . . . Walls Destroyed . | . . . . . Machines Disabled . | . . . . . Actions | -11 -10 -9 -9 -9 --------- Run | Yrd Mat Mat Min Exi Total 2657 | 102 660 852 661 382 Wait 42 | . . 38 4 . Move 2277 | 74 562 688 637 316 Hop . | . . . . . Pick Up 61 | 10 20 17 4 10 Fast Attach 5 | 2 . 2 . 1 Attach 25 | 5 7 3 1 9 Detach 1 | . 1 . . . Swap 24 | . 6 17 1 . Drop 46 | . 7 21 1 17 Fire 167 | 11 55 64 13 24 Melee . | . . . . . Ram 1 | . . 1 . . Kick . | . . . . . Crush 3 | . 2 1 . . Escape Stasis . | . . . . . Rewire . | . . . . . Trap 5 | . . . . 5 Miscellaneous . | . . . . . Route ------- -11/Scrapyard -10/Materials (discovered 5 exits: *Mat x3 / [*Min] / [*Sub]) -9/Materials (discovered 5 exits: [*Mat x2] / [*Min x2] / [*Sto]) -9/Mines (discovered 4 exits: [*Mat x2] / *Exi / [*Zio]) -9/Exiles History --------- Turn | Location | Event 10 | -11/Scrapyard | Discovered new exit (range 15) 160 | -11/Scrapyard | Entered Materials 308 | -10/Materials | Build established: Mutant 376 | -10/Materials | Discovered new exit (range 11) 496 | -10/Materials | Discovered new exit (range 8) 549 | -10/Materials | Discovered new exit (range 6) 738 | -10/Materials | Discovered new exit (range 8) 923 | -10/Materials | Discovered new exit (range 15) 1273 | -10/Materials | Core integrity fell below 50% 1273 | -10/Materials | Core integrity fell below 20% 1297 | -10/Materials | Lost 3 parts (1p1n1w) 1350 | -10/Materials | Entered another Materials area 1350 | -9/Materials | Evolved 2 slots: Propulsion x1, Weapon x1 1681 | -9/Materials | Build established: Tank 1771 | -9/Materials | Destroyed 7 combat bots 1793 | -9/Materials | Discovered new exit (range 5) 1841 | -9/Materials | Discovered new exit (range 15) 2010 | -9/Materials | Build established: Scavenger-Tank 2061 | -9/Materials | Discovered new exit (range 12) 2142 | -9/Materials | Discovered new exit (range 7) 2722 | -9/Materials | Discovered new exit (range 11) 2993 | -9/Materials | Entered Mines 3144 | -9/Mines | A Derelict revealed a hidden shortcut to a safe place 3635 | -9/Mines | Discovered new exit (range 6) 3766 | -9/Mines | Learned Materials non-interactive machine intel 3857 | -9/Mines | Discovered new exit (range 8) 3869 | -9/Mines | Assisted by bots powering up and referring to "LRC-V3" 4228 | -9/Mines | A weapon hastily lodged in a ceiling crevice suddenly fell to the ground 4390 | -9/Mines | Found a hidden stash of uninstalled traps 4413 | -9/Mines | Deemed a non-threat by the Exiles lab entrance 4413 | -9/Mines | Discovered new exit (range 5) 4518 | -9/Mines | Entered Exiles 4518 | -9/Exiles | Accompanied by 3 allies 4560 | -9/Exiles | Met 8R-AWN 4588 | -9/Exiles | Met EX-HEX 4636 | -9/Exiles | Met EX-BIN 4658 | -9/Exiles | Aligned with FarCom system 4660 | -9/Exiles | Given EX-Vault access code 4697 | -9/Exiles | Opened EX-Vault 4710 | -9/Exiles | Found Gui. Plasma Cannon 4741 | -9/Exiles | Warned to stay clear of 0b10 Research branches 4786 | -9/Exiles | Met EX-DEC 4792 | -9/Exiles | Learned location of Zion (-7) 4892 | -9/Exiles | Build established: Mutant 4963 | -9/Exiles | Warned about trapping Exiles lab 4966 | -9/Exiles | Attacked by the Exiles 5052 | -9/Exiles | Core integrity fell below 50% 5059 | -9/Exiles | Lost 3 allies 5102 | -9/Exiles | Core integrity fell below 20% 5108 | -9/Exiles | Lost 9 parts (1p4n1u3w) 5127 | -9/Exiles | Destroyed by 8R-AWN with 8R-AWN's Boregun Last Messages --------------- 05109_ Penetrated by HV Slug. 05109_ HV Slug penetrates Machine. 05111_ Acquired Blade Trap. 05111_ Penetrated by HV Slug. 05111_ HV Slug penetrates Earth. 05114_ Dropped Blade Trap. 05115_ Installed Blade Trap. 05115_ Penetrated by HV Slug. 05115_ Critical hit (Destroy). 05115_ Lgt. Treads destroyed. 05115_ HV Slug penetrates Machine. 05117_ Penetrated by HV Slug. 05117_ HV Slug penetrates Wall. 05119_ Penetrated by HV Slug. 05119_ HV Slug penetrates Wall. 05121_ Penetrated by HV Slug. 05121_ HV Slug penetrates Wall. 05123_ Penetrated by HV Slug. 05123_ HV Slug penetrates Wall. 05127_ Penetrated by HV Slug. Map ----- +----------------------------------------------------+ | ?????????????????????????????????????????????????? | | ?????????????????????????????????????????????????? | | ?????????????????????????????????????????????????? | | ?????????????????????????????????????????????????? | | ???????????? ???????????????????????????????????? | | ???????????? ??????????????????????????????????? | | ???????????# ?????????????????????????????????? | | ????????????# ????????????????????????????????? | | ????????????# ???????????????????????????????? | | ?????????????# ?????????????#######??????????? | | ?????????????# #######??????#!!! "#??????????? | | ?????????????# #""##?????# "#??????????? | | ??????????????# #?????# "#??????????? | | ??????????????##" ##???## ""#??????????? | | ??????????????#"" #####" ""#??????????? | | ?????????????????# ##" ""#??????????? | | ?????????????????## #"" ###??????????? | | ??????????????????#"## #????????????? | | ?????????????????????#### ! ##???????????? | | ????????????????????????### *!* ####????????? | | ??????????????????######## %*!% #????????? | | ????????????????### !! =[%%! #????? | | ????????????????# ;! g=!###" ##???# | | ????????????????###! ^ #?## ##### | | ??????????????????#! ##??#" | | ??????????????????# ! @ ###???#"# | | ??????????????????###;###;##?????#### | | ????????????????????##?# #?????????# | | ???????????????????????####??????????? # | | ??????????????????????????????????????#### | | ?????????????????????????????????????????## | | ??????????????????????????????????????????##" | | ???????????????????????????????????????????#""" | | ???????????????????????????????????????????#" | | ???????????????????????????????????????????"" | | ???????????????????????????????????????????""" | | ???????????????????????????????????????????"" | | ????????????????????????????????????????????" | | ???????????????????????????????????????????? | | ????????????????????????????????????????????" | | ?????????????????????????????????????????????? | | ???????????????????????????????????????????????? | | ?????????????????????????????????????????????????? | | ?????????????????????????????????????????????????? | | ?????????????????????????????????????????????????? | | ?????????????????????????????????????????????????? | | ?????????????????????????????????????????????????? | | ?????????????????????????????????????????????????? | | ?????????????????????????????????????????????????? | | ?????????????????????????????????????????????????? | +----------------------------------------------------+ Best States ------------- Heat Dissipation 28 Energy Generation 14 Energy Capacity 275 Matter Stores 300 Matter Capacity 300 Sight Range 16 Terrain Scan Density 10 Armor Coverage 150 Evasion (%) 50 Recoil Reduction 3 Trap Extractor Capacity 4 Item Schematics ----------------- None Robot Schematics ------------------ None Fabricated ------------ Nothing Repaired ---------- Nothing Alien Tech Used ----------------- None Achievements -------------- None Challenges ------------ None Game ------ Seed PhaseDirectedLog Manual? 0 Play Time 00:29:30 Cumulative 81.2 hours Start 2025.07.06 @ 12:38:17 End 2025.07.06 @ 13:35:45 Sessions 3 Manual Loads 0 Difficulty Rogue Special Mode None Game No. 143 Rogue 143 Adventurer 0 Explorer 0 Win Type - Total 1 Types 1/0/0/0/0/0/0/0/0/0 Lore% 57 Gallery% 48 Achievement% 41 Wizard Run 0 Options --------- Layout 0 ASCII 0 Keyboard 0 Movement Mouse Keybinds 0 Fullscreen 1 Font 16/SmallcapsGlow Map View 75x55 Zoom Use 0% Tactical HUD 1 Map Filters NONE Filters NONE Steam 1 RUN: 2b141a3e-ea88-4f6c-b0eb-fcc987258233